bitfinex/quotes_ETHUSD_20250524
["timestamp","ask_amount","ask_price","bid_price","bid_amount"]
[1748121577651,0.7519,2541.6,2541.4,12.14176361]
[1748121577853,0.7519,2541.6,2541.4,11.776]
[1748121579144,0.7519,2541.6,2541.5,37.997]
[1748121579859,10.23909,2541.6,2541.5,14.445]
[1748121580236,10.23909,2541.6,2541.5,26.221]
[1748121580437,0.55,2541.5,2541.1,0.05]
[1748121580758,0.7519,2541.4,2541.3,11.776]
[1748121580965,0.55,2541.3,2541.1,0.05]
[1748121581130,0.55,2541.3,2540.1,0.65920813]
[1748121581131,14.71919881,2541.3,2540.1,0.65920813]
[1748121581322,13.71874922,2541.4,2540.1,0.45487284]
[1748121581323,1.3577,2540.9,2540.1,0.45487284]
[1748121581519,0.8077,2540.8,2540.1,0.25]
[1748121581723,0.8077,2540.8,2540.7,11.782]
[1748121583122,0.8077,2540.8,2540.1,0.04]
[1748121583123,0.55,2540.6,2540.1,0.04]
[1748121583327,0.55,2540.2,2540.1,0.04]
[1748121583764,0.55,2540.2,2540.1,11.817]
[1748121584663,0.55,2540.2,2540.0,5.005]
[1748121584664,9.3577,2540.1,2540.0,5.005]
[1748121584817,0.55,2539.7,2539.1,0.05]
[1748121585026,0.85693016,2539.6,2539.2,11.779]
[1748121585339,0.8077,2539.6,2539.2,11.779]
[1748121585527,0.55,2539.5,2539.2,11.779]
[1748121586145,0.789,2539.4,2539.1,0.05]
[1748121586439,0.789,2539.7,2539.0,0.1]
[1748121586651,8.789,2539.9,2539.2,1.85303022]
[1748121586856,10.73527743,2539.9,2539.4,1.85303022]
[1748121587238,0.789,2539.9,2539.4,1.85303022]
[1748121587442,0.789,2539.9,2539.4,0.53718128]
[1748121587645,0.789,2539.9,2539.5,11.782]
[1748121588045,8.0,2540.0,2539.5,11.882]
[1748121588239,8.0,2540.0,2539.5,11.782]
[1748121588462,9.07547013,2540.0,2539.5,11.782]
[1748121588665,1.07547013,2540.0,2539.5,11.782]
[1748121588864,0.789,2540.1,2539.5,11.782]
[1748121589231,0.789,2540.1,2539.6,38.016]
[1748121589465,0.789,2540.1,2539.4,0.53718128]
[1748121589664,0.789,2540.1,2539.5,26.234]
[1748121589854,0.789,2540.1,2539.5,11.782]
[1748121590171,0.789,2540.1,2539.6,11.782]
[1748121590372,6.12,2540.0,2539.6,11.782]
[1748121591364,6.12,2540.0,2539.6,13.63503022]
[1748121595858,6.12,2540.0,2539.6,11.782]
[1748121596796,6.12,2540.0,2539.4,1.85303022]
[1748121596982,6.12,2540.0,2539.5,11.784]
[1748121599183,8.0,2539.9,2539.6,38.023]
[1748121599584,8.0,2539.9,2539.7,11.784]
[1748121600278,8.0,2539.9,2539.8,11.784]
[1748121600487,14.12,2539.9,2539.4,1.85303022]
[1748121600664,14.12,2539.9,2539.5,11.784]
[1748121601262,14.12,2539.9,2539.3,0.1]
[1748121601473,14.12,2539.9,2539.4,11.784]
[1748121601889,14.12,2539.9,2539.5,0.36467545]
[1748121602380,14.12,2539.9,2539.4,11.784]
[1748121603449,14.12,2539.9,2539.5,0.36494661]
[1748121604085,14.12,2539.9,2539.4,13.6396794]
[1748121604308,14.12,2539.9,2539.4,15.01364734]
[1748121604471,14.12,2539.9,2539.5,0.21904623]
[1748121605389,14.12,2539.9,2539.4,15.01364734]
[1748121605792,14.12,2539.9,2539.5,0.36533124]
[1748121606289,14.12,2539.9,2539.6,0.36533124]
[1748121606887,14.12,2539.9,2539.7,0.36533124]
[1748121607591,14.12,2539.9,2539.5,0.36533124]
[1748121607993,0.7761,2539.8,2539.5,0.36533124]
[1748121608196,0.7761,2539.8,2539.6,11.785]
[1748121608405,0.7761,2539.8,2539.7,0.36533124]
[1748121608856,0.7761,2539.8,2539.7,0.58486414]
[1748121609054,0.7761,2539.8,2539.2,1.12504468]
[1748121609257,0.7761,2539.8,2539.3,14.491]
[1748121609456,0.7761,2539.8,2539.3,1.56160447]
[1748121609702,0.7761,2539.8,2539.2,1.12504468]
[1748121610306,0.7761,2539.8,2539.3,11.785]
[1748121612395,0.7761,2539.8,2539.4,11.785]
[1748121614383,0.7761,2539.8,2539.5,11.785]
[1748121618201,8.0,2539.7,2539.5,11.785]
[1748121619071,8.0,2539.7,2539.6,6.599]
[1748121619327,8.0,2539.7,2539.6,38.061]
[1748121620484,8.0,2539.7,2539.6,14.491]
[1748121621290,8.0,2539.7,2539.6,14.8591957]
[1748121621617,8.0,2539.7,2539.6,15.08011614]
[1748121622510,8.0,2539.7,2539.6,0.58911614]
[1748121624541,8.0,2539.7,2539.6,12.37411614]
[1748121628023,8.0,2539.7,2539.6,0.58911614]
[1748121628546,8.0,2539.7,2539.6,12.37411614]
[1748121629252,8.0,2539.7,2539.6,50.43511614]
[1748121629411,11.53464721,2539.7,2539.6,50.43511614]
[1748121630044,17.65464721,2539.7,2539.6,50.43511614]
[1748121632264,17.65464721,2539.7,2539.6,12.37411614]
[1748121635679,15.68894593,2539.7,2539.6,12.37411614]
[1748121639156,15.68894593,2539.7,2539.6,50.40211614]
[1748121639863,15.68894593,2539.7,2539.6,26.83111614]
[1748121640372,17.33545052,2539.7,2539.6,0.58911614]
[1748121640579,17.33545052,2539.7,2539.6,12.37411614]
[1748121642803,17.33545052,2539.7,2539.2,1.85584137]
[1748121644063,17.33545052,2539.7,2539.3,11.786]
[1748121645800,17.33545052,2539.7,2539.0,1.95584137]
[1748121646010,17.33545052,2539.7,2539.1,11.786]
[1748121646506,5.34966068,2539.6,2539.0,1.95584137]
[1748121646681,8.8071,2539.5,2539.1,11.786]
[1748121647008,14.9271,2539.5,2539.1,11.786]
[1748121647803,14.9271,2539.5,2539.2,11.786]
[1748121648707,16.8966597,2539.5,2539.2,11.786]
[1748121649203,16.8966597,2539.5,2539.3,38.03]
[1748121649714,16.8966597,2539.5,2539.3,14.458]
[1748121650706,14.9271,2539.5,2539.3,14.458]
[1748121651200,14.9225426,2539.5,2539.3,14.458]
[1748121651392,14.9225426,2539.5,2539.2,11.786]
[1748121652129,14.9225426,2539.5,2539.0,1.95584137]
[1748121652427,14.9225426,2539.5,2539.1,11.786]
[1748121655123,14.9225426,2539.5,2539.2,0.22087327]
[1748121656282,14.9225426,2539.5,2539.3,0.22087327]
[1748121656487,15.86410936,2539.5,2539.3,12.00687327]
[1748121656687,14.9225426,2539.5,2539.3,12.00687327]
[1748121657229,14.9225426,2539.5,2539.4,0.22087327]
[1748121659330,14.9225426,2539.5,2539.4,50.03687327]
[1748121659831,14.9225426,2539.5,2539.4,0.22087327]
[1748121660034,14.9225426,2539.5,2539.4,26.46487327]
[1748121660196,16.61175283,2539.5,2539.4,26.46487327]
[1748121660528,16.61175283,2539.5,2539.4,12.00687327]
[1748121661242,20.15105102,2539.5,2539.4,12.00687327]
[1748121661408,20.15105102,2539.5,2539.4,0.22087327]
[1748121661605,20.15105102,2539.5,2539.4,12.00687327]
[1748121661806,20.70105102,2539.5,2539.4,12.00687327]
[1748121662122,20.70105102,2539.5,2539.4,11.95687327]
[1748121662524,0.55,2539.4,2539.0,0.1]
[1748121662843,0.2,2538.8,2537.0,0.20511624]
[1748121663045,0.2,2538.8,2535.0,3.78866395]
[1748121663046,3.94461756,2535.1,2535.0,3.78866395]
[1748121663357,0.2,2532.7,2530.8,8.2571127]
[1748121663499,0.15,2531.9,2530.9,37.879]
[1748121663697,0.15,2533.2,2530.9,26.143]
[1748121663897,4.13,2532.8,2530.9,26.093]
[1748121664100,4.68,2531.7,2530.8,7.7071127]
[1748121664338,0.51568116,2531.8,2530.1,0.05]
[1748121664339,4.13,2530.8,2530.1,0.05]
[1748121664497,0.3770814,2531.6,2529.8,11.786]
[1748121664498,222.0,2530.2,2529.8,11.786]
[1748121664799,0.32766705,2530.1,2529.3,0.00932208]
[1748121664992,8.0139035,2530.1,2529.3,0.00932208]
[1748121665233,6.2344739,2530.1,2528.1,0.25]
[1748121665431,1.86812168,2529.0,2528.2,11.786]
[1748121665634,2.19578873,2528.9,2528.1,0.25]
[1748121665862,1.14667013,2528.8,2528.1,0.25]
[1748121666015,0.15,2528.6,2528.0,11.801]
[1748121666335,4.04659123,2528.1,2526.1,0.05]
[1748121666566,4.04659123,2528.1,2522.1,0.25]
[1748121666567,0.32766705,2528.0,2522.1,0.25]
[1748121666872,1.99194255,2525.5,2522.2,0.40949365]
[1748121667096,0.2,2525.6,2520.0,0.024]
[1748121667097,0.2,2524.9,2520.0,0.024]
[1748121667290,3.96196513,2524.0,2520.0,0.024]
[1748121667430,0.2,2524.1,2512.5,0.01686]
[1748121667431,0.59014535,2522.3,2517.8,0.2]
[1748121667630,0.2,2521.6,2517.6,11.801]
[1748121667867,0.76943058,2521.5,2517.6,11.801]
[1748121668027,0.2,2521.3,2517.6,11.801]
[1748121668246,0.59014535,2519.8,2516.2,0.2]
[1748121668442,0.43648941,2519.5,2518.2,11.801]
[1748121668650,0.32766705,2519.5,2518.3,1.1851]
[1748121668852,0.32766705,2519.4,2518.3,1.1851]
[1748121669052,0.57382335,2519.9,2518.4,1.63008339]
[1748121669282,0.00679923,2519.4,2518.5,17.029]
[1748121669482,0.32766705,2519.3,2518.5,17.029]
[1748121669642,0.00679923,2519.2,2517.7,11.825]
[1748121669846,0.32766705,2519.1,2517.7,11.825]
[1748121670047,0.00679923,2519.0,2517.7,11.825]
[1748121670244,0.32766705,2518.9,2517.7,11.825]
[1748121670444,0.00679923,2518.8,2516.1,0.25]
[1748121670682,0.2,2519.9,2516.1,0.25]
[1748121670884,4.34897492,2522.6,2517.1,0.25]
[1748121671082,4.34897492,2522.6,2518.4,0.2]
[1748121671083,0.32766705,2521.8,2518.4,0.2]
[1748121671392,1.47536339,2522.1,2519.2,0.2]
[1748121671689,1.47536339,2522.1,2519.9,0.2]
[1748121672063,0.10936929,2522.1,2519.7,1.03659459]
[1748121672267,0.10936929,2521.9,2520.0,0.20500129]
[1748121672460,0.10936929,2521.4,2519.3,1.03659459]
[1748121672660,0.10936929,2521.2,2520.1,11.844]
[1748121672996,0.10936929,2521.2,2520.2,1.1344]
[1748121673302,0.10936929,2522.8,2520.6,0.09063071]
[1748121673509,0.10936929,2522.4,2520.3,0.92307223]
[1748121673690,0.10936929,2522.7,2520.2,1.1344]
[1748121673870,0.05,2522.9,2520.5,0.09063071]
[1748121674200,0.05,2522.9,2521.0,0.09063071]
[1748121674406,0.05,2522.9,2521.5,0.09063071]
[1748121674572,0.0099492,2522.8,2521.5,0.09063071]
[1748121674772,0.0099492,2522.8,2521.4,0.09063071]
[1748121674959,0.0099492,2522.8,2521.9,0.09063071]
[1748121675478,0.0099492,2522.8,2521.5,26.432]
[1748121675661,0.0099492,2522.8,2521.9,0.09063071]
[1748121676217,0.0099492,2522.8,2521.6,2.74289378]
[1748121676362,0.0099492,2522.8,2522.0,26.52263071]
[1748121676562,0.0099492,2522.8,2522.2,0.09063071]
[1748121677116,0.0099492,2522.8,2522.4,0.09063071]
[1748121677277,0.10936929,2525.4,2522.8,0.09063071]
[1748121677606,0.05,2525.9,2524.1,0.09063071]
[1748121678006,0.05,2525.9,2525.6,0.09063071]
[1748121678359,0.05,2525.9,2525.6,0.94660617]
[1748121678561,0.05,2525.9,2525.4,0.09063071]
[1748121678763,0.05,2525.9,2525.6,0.09063071]
[1748121679221,0.00328,2526.0,2525.6,0.09063071]
[1748121679535,0.00328,2526.0,2524.7,0.49778766]
[1748121679536,0.00328,2526.0,2525.9,8.0]
[1748121679673,0.00328,2526.0,2525.9,20.65640319]
[1748121680764,0.05,2527.9,2525.9,20.7470339]
[1748121680964,0.05,2527.9,2525.9,18.57920367]
[1748121681964,0.05,2527.9,2525.9,16.87995942]
[1748121682292,0.10936929,2527.6,2526.0,0.55]
[1748121682630,0.10936929,2527.6,2526.1,1.0844]
[1748121682958,0.10936929,2527.6,2526.2,0.33044992]
[1748121683278,0.7507,2527.0,2526.2,0.28044992]
[1748121683611,0.10936929,2526.8,2524.2,0.51568116]
[1748121683786,0.10936929,2526.4,2524.3,0.33069865]
[1748121683993,0.10936929,2526.2,2524.3,0.33069865]
[1748121684187,0.10936929,2525.5,2524.3,0.33069865]
[1748121684910,0.7507,2526.0,2524.5,8.0]
[1748121685114,0.10936929,2525.6,2524.6,1.9847]
[1748121685911,0.10936929,2525.6,2524.7,0.55]
[1748121687716,0.10936929,2525.6,2524.4,11.847]
[1748121688418,0.10936929,2525.4,2524.4,11.847]
[1748121688619,0.7507,2526.0,2524.4,13.0317]
[1748121688793,0.45601614,2525.5,2524.5,0.55]
[1748121689183,0.7645,2525.4,2524.1,0.05]
[1748121689383,0.10936929,2525.0,2524.1,0.05]
[1748121689608,0.10936929,2525.2,2524.1,0.05]
[1748121689992,0.10936929,2525.2,2524.2,0.55]
[1748121690383,0.34664685,2525.1,2524.4,0.55]
[1748121690586,0.34664685,2525.1,2524.4,1.8449]
[1748121691089,0.34664685,2525.0,2524.4,1.8449]
[1748121691620,0.34664685,2524.9,2524.4,1.8449]
[1748121692621,0.34664685,2524.8,2524.4,7.76583212]
[1748121693586,0.34664685,2524.7,2524.4,7.76583212]
[1748121693804,0.34664685,2524.7,2524.5,1.96148321]
[1748121694532,0.34664685,2524.6,2524.5,1.96148321]
[1748121694718,0.34664685,2524.6,2524.5,2.51148321]
[1748121695814,0.12999256,2524.6,2524.5,2.51148321]
[1748121697421,0.12999256,2524.6,2524.5,0.81069709]
[1748121699438,0.60129724,2525.3,2524.6,0.55]
[1748121699743,0.35408207,2525.2,2524.6,0.55]
[1748121700920,0.60129724,2525.7,2524.6,0.55]
[1748121701126,0.60129724,2525.6,2524.6,0.55]
[1748121702507,0.60129724,2525.4,2524.6,0.88065935]
[1748121702703,0.60129724,2525.4,2524.8,0.55]
[1748121702947,0.60129724,2525.4,2525.0,0.55]
[1748121703616,0.60129724,2525.8,2525.2,0.55]
[1748121703825,0.60129724,2525.8,2525.2,0.88058078]
[1748121704543,0.60129724,2526.0,2525.2,0.88058078]
[1748121704725,0.60129724,2526.0,2524.9,26.2706071]
[1748121705310,0.60129724,2526.0,2525.0,26.432]
[1748121706564,0.60129724,2526.0,2524.3,11.93963071]
[1748121706720,0.60129724,2525.5,2524.4,0.55]
[1748121707845,0.3677633,2525.4,2524.4,0.55]
[1748121708354,0.7682,2525.3,2524.5,11.847]
[1748121708554,0.7682,2524.8,2522.5,0.09063071]
[1748121708710,0.7682,2524.8,2522.7,0.09063071]
[1748121708711,0.60129724,2524.6,2522.7,0.09063071]
[1748121709140,0.60129724,2524.6,2524.2,23.694]
[1748121709353,0.60129724,2524.6,2523.2,0.55]
[1748121709517,0.3677633,2524.5,2522.8,26.271]
[1748121709710,0.3677633,2524.5,2524.2,11.847]
[1748121710731,0.3677633,2524.4,2524.2,11.847]
[1748121711525,0.3677633,2524.3,2524.2,11.847]
[1748121711745,0.3677633,2524.3,2523.2,1.3348]
[1748121712543,0.3677633,2524.2,2523.2,1.3348]
[1748121712914,0.3677633,2524.2,2523.4,8.55]
[1748121713248,0.3677633,2524.2,2523.5,0.55]
[1748121713448,0.61311673,2524.6,2523.5,0.55]
[1748121713449,0.3677633,2524.1,2523.5,0.55]
[1748121714230,1.38131673,2524.8,2523.5,0.55]
[1748121715013,1.38131673,2524.8,2523.4,6.84904639]
[1748121715411,0.36871066,2524.7,2523.4,6.84904639]
[1748121716415,0.7682,2524.8,2523.4,6.84904639]
[1748121716416,0.36871066,2524.6,2523.4,31.45294639]
[1748121717166,0.7682,2524.8,2523.5,0.55]
[1748121718318,0.7682,2524.8,2523.5,25.1539]
[1748121719141,0.7682,2524.8,2523.7,0.55]
[1748121719474,0.7682,2524.8,2523.5,17.1539]
[1748121721275,1.5436041,2524.7,2523.5,17.1539]
[1748121721473,1.5436041,2524.7,2523.6,0.55]
[1748121721971,1.5436041,2524.7,2523.6,8.55]
[1748121722152,1.5436041,2524.7,2523.8,8.0]
[1748121722518,1.5436041,2524.7,2523.9,0.55]
[1748121723721,1.5436041,2524.6,2523.9,0.55]
[1748121723925,2.41790916,2525.3,2524.1,0.55]
[1748121724329,2.41790916,2525.3,2524.3,0.55]
[1748121724862,2.41790916,2525.3,2524.2,7.22732731]
[1748121725180,2.41790916,2525.3,2524.2,7.31795802]
[1748121725354,2.41790916,2525.3,2524.3,17.154]
[1748121725737,2.32740916,2525.3,2524.3,17.154]
[1748121726059,2.22640916,2525.3,2524.3,17.154]
[1748121726462,2.12640916,2525.3,2524.3,17.154]
[1748121726673,0.033345,2525.9,2524.5,17.24463071]
[1748121726838,0.70790016,2526.6,2524.8,0.55]
[1748121727350,0.70790016,2526.6,2525.1,0.55]
[1748121728342,0.70790016,2526.6,2525.2,0.55]
[1748121728674,0.70790016,2526.6,2525.4,0.55]
[1748121729036,0.05,2526.9,2525.4,8.55]
[1748121729836,0.7579,2526.8,2525.4,8.55]
[1748121730547,0.7579,2526.8,2525.6,8.0]
[1748121731137,0.7579,2526.8,2525.7,1.3476]
[1748121732107,0.05,2526.9,2525.7,1.3476]
[1748121732451,0.05,2526.9,2526.1,8.0]
[1748121733251,0.05,2526.9,2526.2,0.55]
[1748121734436,0.05,2526.9,2526.2,17.704]
[1748121735183,0.05,2526.9,2526.4,0.55]
[1748121735366,0.05,2526.9,2526.5,0.36542612]
[1748121735969,0.05,2526.9,2526.6,0.36542612]
[1748121736872,0.05,2526.9,2526.7,0.36542612]
[1748121737384,0.05,2526.9,2526.8,0.36542612]
[1748121738673,0.8209,2527.8,2526.8,0.36542612]
[1748121739390,0.8209,2527.8,2526.7,17.9581]
[1748121739391,0.8209,2527.8,2526.9,0.36542612]
[1748121739714,0.05,2527.9,2527.0,11.842]
[1748121739916,0.05,2527.9,2527.0,12.20742612]
[1748121740086,0.05,2527.9,2527.1,0.55]
[1748121740415,0.05,2527.9,2527.4,17.154]
[1748121740787,0.05,2527.9,2527.5,0.36542612]
[1748121741375,0.05,2527.9,2527.6,0.36542612]
[1748121741980,0.05,2527.9,2527.7,12.20442612]
[1748121742715,0.05,2527.9,2527.8,0.36542612]
[1748121742924,0.8709,2527.9,2527.8,0.36542612]
[1748121743218,0.8709,2527.9,2527.8,12.20442612]
[1748121745924,0.05,2527.9,2527.8,12.20442612]
[1748121746626,0.8209,2528.3,2527.8,12.20442612]
[1748121747322,0.8209,2528.3,2527.9,0.36542612]
[1748121747520,0.7709,2528.3,2527.9,0.36542612]
[1748121748130,0.7709,2528.3,2528.0,0.36542612]
[1748121748278,0.7709,2528.3,2528.1,0.36542612]
[1748121748785,0.7709,2528.3,2528.2,0.36542612]
[1748121749077,0.7709,2528.3,2528.2,6.99342612]
[1748121749306,0.7709,2528.3,2528.2,24.03842612]
[1748121750019,0.7709,2528.3,2528.2,0.36542612]
[1748121750582,0.8045,2528.8,2528.2,0.36542612]
[1748121751316,0.8045,2528.8,2528.3,0.36542612]
[1748121752112,0.8045,2528.8,2528.4,0.36542612]
[1748121752418,0.8045,2528.8,2528.5,0.36542612]
[1748121752814,0.8045,2528.8,2528.6,0.36542612]
[1748121753386,0.8045,2528.8,2528.7,0.36542612]
[1748121755137,0.05,2528.9,2528.7,0.36542612]
[1748121755298,0.05,2528.9,2528.8,0.36542612]
[1748121756512,0.05,2528.9,2528.8,20.19842612]
[1748121756823,0.05,2528.9,2528.8,8.36542612]
[1748121757023,0.05,2528.9,2528.8,20.19842612]
[1748121757224,0.05,2528.9,2528.8,8.36542612]
[1748121757428,0.05,2528.9,2528.8,20.19842612]
[1748121759196,0.05,2528.9,2528.8,43.86342612]
[1748121759539,0.05,2528.9,2528.8,20.19742612]
[1748121759892,0.05,2528.9,2528.8,20.14742612]
[1748121760696,0.05,2528.9,2528.8,19.832]
[1748121764528,0.05,2528.9,2527.8,17.92]
[1748121764833,0.8066,2528.8,2527.8,17.92]
[1748121765403,0.8066,2528.8,2527.8,0.766]
[1748121765793,0.8066,2528.8,2527.9,11.831]
[1748121767927,0.8066,2528.8,2528.0,8.0]
[1748121769108,0.8066,2528.8,2528.2,8.0]
[1748121769309,0.8066,2528.8,2528.0,8.0]
[1748121779174,0.8066,2528.8,2528.1,23.662]
[1748121780676,0.8066,2528.8,2528.2,11.831]
[1748121781989,0.8066,2528.8,2528.3,8.0]
[1748121784847,0.4033,2528.8,2528.3,8.0]
[1748121785052,0.05,2528.9,2528.3,8.0]
[1748121787094,0.05,2528.9,2528.1,0.8023]
[1748121787260,0.05,2528.9,2528.2,11.832]
[1748121788092,0.8187,2528.9,2528.2,11.832]
[1748121788485,0.8187,2528.9,2527.8,17.154]
[1748121788774,0.8187,2528.9,2527.9,11.831]
[1748121789166,0.8187,2528.9,2528.1,8.0]
[1748121789362,0.8187,2528.9,2527.5,0.20568949]
[1748121789578,0.8187,2528.9,2528.2,11.831]
[1748121789894,0.7687,2528.6,2528.3,8.0]
[1748121790193,0.7687,2528.6,2528.2,11.831]
[1748121790556,0.7687,2528.6,2528.3,8.0]
[1748121791591,1.42806929,2528.5,2528.4,11.831]
[1748121791767,0.7687,2528.4,2526.7,1.25958018]
[1748121791965,0.7687,2528.2,2527.1,0.20574137]
[1748121792368,0.7687,2528.2,2526.6,0.20471991]
[1748121792569,0.7687,2528.2,2527.1,0.20575542]
[1748121792813,0.7687,2528.2,2526.6,0.20471991]
[1748121793012,0.7687,2528.2,2526.7,11.832]
[1748121793210,0.7687,2528.2,2527.1,0.20576224]
[1748121793410,0.7687,2528.2,2527.2,11.832]
[1748121794616,0.10936929,2528.1,2527.2,11.832]
[1748121794818,0.7687,2528.0,2527.2,11.832]
[1748121796520,0.7687,2528.0,2527.3,8.0]
[1748121798819,0.7951,2527.7,2527.4,11.835]
[1748121799116,0.7951,2527.7,2527.6,7.8]
[1748121800180,0.7951,2527.7,2527.6,11.835]
[1748121802108,0.7951,2527.7,2526.6,0.20578614]
[1748121802411,0.7951,2527.7,2527.6,11.836]
[1748121802991,0.7951,2527.5,2526.6,0.20578614]
[1748121803202,0.10936929,2527.4,2526.7,11.836]
[1748121803403,0.10936929,2527.4,2526.8,8.0]
[1748121803803,0.7951,2527.5,2526.8,8.0]
[1748121804008,0.10936929,2527.4,2526.8,8.0]
[1748121805111,0.7951,2527.5,2526.8,8.0]
[1748121805298,0.10936929,2527.4,2526.8,8.0]
[1748121805821,0.7951,2527.5,2526.8,8.0]
[1748121809230,0.7951,2527.5,2526.7,11.836]
[1748121810312,0.7951,2527.5,2526.8,8.0]
[1748121816230,0.7951,2527.5,2526.8,8.8293]
[1748121816612,0.10936929,2528.1,2526.8,8.8293]
[1748121816805,0.8249,2528.0,2526.8,8.8293]
[1748121817006,0.10936929,2527.9,2526.9,11.838]
[1748121817200,0.8249,2528.0,2526.9,11.838]
[1748121817723,0.8249,2528.0,2527.0,8.0]
[1748121819226,0.8249,2528.0,2527.2,8.0]
[1748121819727,0.8249,2528.0,2527.0,8.0]
[1748121820676,0.8249,2528.0,2526.5,8.0]
[1748121820956,0.8249,2528.0,2526.4,19.32916295]
[1748121820957,0.8249,2528.0,2526.7,8.0]
[1748121827874,0.8249,2528.0,2526.8,0.7934]
[1748121828048,0.8249,2528.0,2526.8,0.78884259]
[1748121829175,0.8249,2528.0,2526.9,23.675]
[1748121829349,0.8249,2528.0,2526.8,0.78884259]
[1748121829671,0.93426929,2528.0,2526.8,0.78884259]
[1748121830796,0.8249,2528.0,2526.8,0.78884259]
[1748121832690,0.8249,2528.0,2526.9,0.55]
[1748121833060,0.8249,2528.0,2526.7,16.49284259]
[1748121833255,0.8249,2528.0,2526.9,17.154]
[1748121834166,0.8249,2528.0,2527.0,11.837]
[1748121835057,0.8249,2528.0,2527.1,8.0]
[1748121839301,0.8249,2528.0,2527.2,23.673]
[1748121839965,0.8249,2528.0,2526.6,0.20574026]
[1748121840303,0.8249,2528.0,2526.7,11.837]
[1748121840671,0.8249,2528.0,2526.8,0.0395498]
[1748121841718,0.8249,2528.0,2526.7,28.331]
[1748121842202,0.8249,2528.0,2526.8,8.0]
[1748121842411,0.8249,2528.0,2527.0,8.0]
[1748121842789,0.8249,2528.0,2527.2,8.0]
[1748121846292,0.8249,2528.0,2526.6,19.95576989]
[1748121846497,0.8249,2528.0,2526.7,11.836]
[1748121847890,0.8249,2528.0,2526.7,13.09558018]
[1748121849124,0.8249,2528.0,2526.8,23.672]
[1748121849522,0.8249,2528.0,2526.9,8.0]
[1748121850605,0.8249,2528.0,2526.8,8.0]
[1748121852518,0.10936929,2528.4,2526.8,8.0]
[1748121853493,0.10936929,2528.4,2526.7,2.06583519]
[1748121853698,0.10936929,2528.4,2526.9,11.836]
[1748121854315,0.10936929,2528.6,2526.9,11.836]
[1748121854500,0.10936929,2528.6,2527.0,0.7659]
[1748121854687,0.10936929,2528.4,2527.0,0.7659]
[1748121855543,0.7893,2528.3,2527.0,0.7659]
[1748121857563,0.7893,2528.3,2527.0,8.7659]
[1748121859240,0.7893,2528.3,2527.2,8.0]
[1748121859644,0.7893,2528.3,2527.0,8.7659]
[1748121860814,0.7893,2528.3,2527.2,8.0]
[1748121861164,0.7893,2528.3,2527.3,0.55]
[1748121861855,0.7893,2528.3,2527.5,8.55]
[1748121862057,0.7893,2528.3,2527.6,0.7931]
[1748121862356,0.05,2528.9,2527.6,0.7931]
[1748121862357,0.7777,2528.8,2527.7,8.55]
[1748121863378,0.7777,2528.8,2527.9,8.55]
[1748121865438,0.7777,2528.8,2528.0,16.494]
[1748121866445,0.7777,2528.8,2528.0,16.88954459]
[1748121867036,0.7777,2528.8,2528.1,0.55]
[1748121867785,0.05,2528.9,2528.1,2.48595512]
[1748121868482,0.05,2528.9,2528.3,16.494]
[1748121869189,0.05,2528.9,2528.5,8.0]
[1748121869489,0.05,2528.9,2528.4,23.665]
[1748121869490,0.05,2528.9,2528.7,8.0]
[1748121871273,0.8091,2529.4,2528.7,8.0]
[1748121871607,0.8091,2529.4,2528.7,24.494]
[1748121872393,0.8091,2529.4,2528.9,8.0]
[1748121872589,0.7645,2529.8,2528.9,8.0]
[1748121872794,0.7645,2529.8,2528.9,8.7908]
[1748121873151,0.7645,2529.8,2529.0,11.83]
[1748121873397,0.05,2529.9,2529.0,11.83]
[1748121874458,0.05,2529.9,2529.2,16.494]
[1748121875569,0.05,2529.9,2529.3,0.55]
[1748121876000,0.05,2529.9,2529.3,8.55]
[1748121876368,0.05,2529.9,2529.5,8.0]
[1748121878395,0.05,2529.9,2529.4,16.494]
[1748121878396,0.05,2529.9,2529.7,8.0]
[1748121879204,0.05,2529.9,2529.8,31.654]
[1748121879704,0.05,2529.9,2529.8,8.0]
[1748121879896,221.518148,2530.2,2529.6,11.828]
[1748121880098,219.872664,2530.2,2529.6,11.828]
[1748121880273,219.079766,2530.2,2529.6,11.828]
[1748121880481,219.079766,2530.2,2529.6,28.71102306]
[1748121880682,213.937387,2530.2,2529.6,28.322]
[1748121880905,212.226315,2530.2,2529.7,0.38902306]
[1748121881106,211.395746,2530.2,2529.7,0.38902306]
[1748121881810,184.536799,2530.2,2529.7,0.38902306]
[1748121882527,184.536799,2530.2,2529.7,16.88302306]
[1748121883637,184.536799,2530.2,2529.8,8.0]
[1748121883832,184.536799,2530.2,2529.9,0.38902306]
[1748121884212,182.5666274,2530.2,2529.9,0.38902306]
[1748121884416,179.9017158,2530.2,2529.9,0.38902306]
[1748121884611,177.9315442,2530.2,2529.9,0.38902306]
[1748121884808,175.9613726,2530.2,2529.9,0.38902306]
[1748121885110,172.0210294,2530.2,2529.9,0.38902306]
[1748121885306,168.0806862,2530.2,2529.9,0.38902306]
[1748121885513,166.1105146,2530.2,2529.9,0.38902306]
[1748121886337,166.0547076,2530.2,2529.9,8.38902306]
[1748121886633,164.9676056,2530.2,2529.9,8.38902306]
[1748121886840,164.1755046,2530.2,2529.9,8.38902306]
[1748121887132,158.91843223,2530.2,2529.9,8.38902306]
[1748121887835,158.91843223,2530.2,2530.0,11.823]
[1748121888138,158.91843223,2530.2,2530.1,0.38902306]